bitfinex/quotes_SOLUSD_20250706
["timestamp","ask_amount","ask_price","bid_price","bid_amount"]
[1751808641412,9.27074446,149.88,149.81,6.67512182]
[1751808641413,11.27006118,149.87,149.81,6.67512182]
[1751808641614,9.27074446,149.88,149.81,6.67512182]
[1751808641810,11.27006118,149.86,149.81,6.67512182]
[1751808642013,15.94282532,149.88,149.81,6.67512182]
[1751808642318,11.27006118,149.86,149.81,6.67512182]
[1751808642497,15.94282532,149.88,149.81,6.67512182]
[1751808642700,15.94240465,149.89,149.81,6.67512182]
[1751808642900,15.94240465,149.89,149.81,17.945183]
[1751808643112,15.94240465,149.89,149.81,6.67512182]
[1751808643317,6.67166019,149.89,149.81,6.67512182]
[1751808643512,13.0217093,149.9,149.81,6.67512182]
[1751808643513,11.27006118,149.88,149.81,23.36292637]
[1751808643836,19.69290094,149.9,149.81,6.67512182]
[1751808643998,11.27006118,149.86,149.81,17.945183]
[1751808644193,19.69290094,149.9,149.81,6.67512182]
[1751808644416,19.69290094,149.9,149.81,17.945183]
[1751808644607,11.27006118,149.87,149.81,17.945183]
[1751808644803,13.0217093,149.9,149.81,34.63298755]
[1751808645014,11.27006118,149.87,149.81,34.63298755]
[1751808645718,1.4068093,149.9,149.84,11.27006118]
[1751808646020,11.27006118,149.89,149.84,11.27006118]
[1751808646220,1.4068093,149.9,149.81,23.36292637]
[1751808646221,1.4068093,149.9,149.87,11.27006118]
[1751808646521,1.4068093,149.9,149.85,26.0]
[1751808647103,1.4068093,149.9,149.88,6.67200427]
[1751808647424,1.4068093,149.9,149.88,17.94206545]
[1751808647797,1.4068093,149.9,149.89,11.27006118]
[1751808648404,1.4068093,149.9,149.88,6.67200427]
[1751808648604,0.9068093,149.9,149.89,11.27006118]
[1751808649121,0.9068093,149.9,149.89,6.67155914]
[1751808649440,0.9068093,149.9,149.89,17.94162032]
[1751808649932,0.9068093,149.9,149.89,6.67155914]
[1751808650102,0.9068093,149.9,149.89,17.94162032]
[1751808651702,0.9068093,149.9,149.89,6.67155914]
[1751808652212,0.9068093,149.9,149.89,11.27006118]
[1751808652818,0.9068093,149.9,149.89,29.91971004]
[1751808653014,11.27006118,149.98,149.92,11.27006118]
[1751808653225,11.27006118,149.98,149.89,18.64964886]
[1751808653429,11.27006118,149.98,149.92,11.27006118]
[1751808653828,2.23552,150.0,149.92,11.27006118]
[1751808654009,11.27006118,149.98,149.92,11.27006118]
[1751808654209,16.31782543,150.0,149.93,17.93984041]
[1751808654210,2.23552,150.0,149.93,17.93984041]
[1751808654430,11.27006118,149.99,149.93,23.3442273]
[1751808654627,11.27006118,149.99,149.93,34.61428848]
[1751808655229,11.27006118,149.98,149.93,6.66977923]
[1751808655536,11.27006118,149.97,149.93,6.66977923]
[1751808656039,2.23552,150.0,149.93,6.66977923]
[1751808656332,2.23552,150.0,149.99,11.27006118]
[1751808656535,1e-08,150.01,150.0,26.0]
[1751808656728,1e-08,150.01,150.0,11.27006118]
[1751808657617,1e-08,150.01,149.97,44.64964886]
[1751808657942,1e-08,150.01,149.97,82.06964886]
[1751808658107,1e-08,150.01,149.97,44.64964886]
[1751808658436,1e-08,150.01,149.98,6.66755567]
[1751808658621,1e-08,150.01,149.95,11.27006118]
[1751808658940,1e-08,150.01,149.91,16.67612265]
[1751808659136,11.27006118,149.97,149.92,6.67022411]
[1751808659315,11.27006118,149.96,149.92,5.66971965]
[1751808659521,0.03,150.0,149.92,5.66971965]
[1751808659718,11.27006118,149.96,149.92,5.66971965]
[1751808660219,11.27006118,149.95,149.9,17.94117525]
[1751808660417,6.66757348,149.98,149.9,17.94117525]
[1751808660635,0.03,150.0,149.9,17.94117525]
[1751808660636,6.69675397,150.0,149.91,11.27006118]
[1751808660830,11.27006118,149.98,149.92,11.27006118]
[1751808661031,0.03,150.0,149.97,11.27006118]
[1751808661236,0.03,150.0,149.95,12.2629]
[1751808661237,0.03,150.0,149.99,11.27006118]
[1751808661781,1e-08,150.01,149.99,11.27006118]
[1751808661940,1e-08,150.01,149.98,26.0]
[1751808661941,1e-08,150.01,150.0,11.27006118]
[1751808662118,1e-08,150.01,149.97,18.64964886]
[1751808662316,1e-08,150.01,150.0,43.93672784]
[1751808662521,1e-08,150.01,150.0,6.66666666]
[1751808662721,1e-08,150.01,150.0,17.93672784]
[1751808663040,1e-08,150.01,150.0,6.66666666]
[1751808663215,1e-08,150.01,150.0,17.93672784]
[1751808664027,1e-08,150.01,149.98,17.93718986]
[1751808664219,1e-08,150.01,149.98,6.66712868]
[1751808665318,1e-08,150.01,149.99,11.27006118]
[1751808666539,1e-08,150.01,149.97,23.33769499]
[1751808666765,1e-08,150.01,149.98,11.27006118]
[1751808667053,1e-08,150.01,149.99,11.27006118]
[1751808667559,1e-08,150.01,150.0,11.27006118]
[1751808668055,1e-08,150.01,149.98,18.64964886]
[1751808668547,1e-08,150.01,149.99,17.93717232]
[1751808668852,1e-08,150.01,150.0,11.27006118]
[1751808669364,1e-08,150.01,149.99,6.66711114]
[1751808669726,1e-08,150.01,150.0,11.27006118]
[1751808670431,1e-08,150.01,150.0,6.66666666]
[1751808670632,1e-08,150.01,150.0,17.93672784]
[1751808671319,11.8598,150.15,150.04,44.64964886]
[1751808671524,11.27006118,150.14,150.04,44.64964886]
[1751808671764,11.27006118,150.14,150.07,11.27006118]
[1751808672022,11.8598,150.15,150.06,11.27006118]
[1751808672252,11.8598,150.15,150.07,11.27006118]
[1751808672556,11.8598,150.15,150.08,6.663113]
[1751808672732,11.8598,150.15,150.08,34.59095669]
[1751808672923,11.27006118,150.12,150.08,6.663113]
[1751808673332,11.27006118,150.1,150.08,6.663113]
[1751808673549,18.5199576,150.15,150.08,6.663113]
[1751808673746,11.27006118,150.11,150.08,6.663113]
[1751808673929,18.5199576,150.15,150.08,6.663113]
[1751808674132,11.8598,150.15,150.08,6.663113]
[1751808674356,18.51981815,150.15,150.08,6.663113]
[1751808674559,18.51981815,150.15,150.06,6.66400106]
[1751808674759,11.27006118,150.11,150.06,6.66400106]
[1751808675136,18.51981815,150.15,150.06,6.66400106]
[1751808675336,18.51981815,150.15,150.06,17.93406224]
[1751808675638,11.27006118,150.11,150.06,6.66400106]
[1751808675844,18.51981815,150.15,150.06,17.93406224]
[1751808676045,18.51981815,150.15,150.06,6.66400106]
[1751808676242,11.27006118,150.11,150.06,6.66400106]
[1751808676447,11.27006118,150.1,150.06,6.66400106]
[1751808676642,11.27006118,150.1,150.04,6.66488936]
[1751808676843,6.66045024,150.14,150.04,6.66488936]
[1751808677267,6.66045024,150.14,150.04,17.93495054]
[1751808677561,11.27006118,150.1,150.04,17.93495054]
[1751808677763,6.66045024,150.14,150.05,0.5]
[1751808677944,11.27006118,150.1,150.05,0.5]
[1751808678147,18.51985148,150.15,150.06,6.66400106]
[1751808678349,11.27006118,150.11,150.06,6.66400106]
[1751808678547,18.51985148,150.15,150.06,6.66400106]
[1751808678744,11.27006118,150.1,150.06,6.66400106]
[1751808679135,18.51985148,150.15,150.06,6.66400106]
[1751808679645,0.1,150.17,150.07,26.0]
[1751808679863,0.1,150.17,150.1,11.9031]
[1751808680064,0.1,150.17,150.11,11.27006118]
[1751808680271,0.1,150.17,150.12,17.93139877]
[1751808680451,11.27006118,150.16,150.12,6.66133759]
[1751808680657,6.75912322,150.17,150.08,11.27006118]
[1751808680851,11.27006118,150.15,150.09,11.27006118]
[1751808681047,6.75912322,150.17,150.08,11.27006118]
[1751808681254,11.27006118,150.15,150.07,6.663557]
[1751808681471,11.27006118,150.15,150.08,11.27006118]
[1751808681674,0.1,150.17,150.07,23.32244951]
[1751808681865,11.27006118,150.16,150.1,11.27006118]
[1751808682066,11.27006118,150.16,150.09,11.27006118]
[1751808682378,0.1,150.17,150.1,11.27006118]
[1751808682575,11.37006118,150.17,150.11,11.27006118]
[1751808682747,11.37006118,150.17,150.09,49.31934172]
[1751808682949,0.1,150.17,150.11,11.27006118]
[1751808683384,11.37006118,150.17,150.11,11.27006118]
[1751808683680,11.27006118,150.14,150.09,6.66266906]
[1751808684060,11.37006118,150.17,150.09,6.66266906]
[1751808684254,11.27006118,150.16,150.1,11.27006118]
[1751808684459,0.1,150.17,150.1,11.27006118]
[1751808684783,0.1,150.17,150.12,11.27006118]
[1751808684956,0.1,150.17,150.09,16.65667266]
[1751808685281,0.1,150.17,150.12,11.27006118]
[1751808685488,0.1,150.17,150.13,11.27006118]
[1751808685655,0.1,150.17,150.14,11.27006118]
[1751808686470,0.1,150.17,150.11,41.96588362]
[1751808686671,0.1,150.17,150.14,11.27006118]
[1751808686865,0.1,150.17,150.11,23.31623476]
[1751808687073,0.1,150.17,150.14,11.27006118]
[1751808687772,0.1,150.17,150.16,11.27006118]
[1751808688477,0.1,150.17,150.11,23.31623476]
[1751808688852,6.75914493,150.17,150.1,6.66215664]
[1751808689055,11.27006118,150.14,150.1,6.66215664]
[1751808689256,11.27006118,150.16,150.1,17.93221782]
[1751808689576,0.1,150.17,150.1,17.93221782]
[1751808689877,0.1,150.17,150.1,6.66215664]
[1751808690087,11.27006118,150.16,150.1,17.93221782]
[1751808690387,0.1,150.17,150.1,6.66215664]
[1751808690564,11.27006118,150.16,150.1,17.93221782]
[1751808690758,0.1,150.17,150.1,17.93221782]
[1751808690967,0.1,150.17,150.1,23.31771959]
[1751808691181,11.27006118,150.15,150.1,6.66215664]
[1751808691490,6.75915903,150.17,150.07,27.92813647]
[1751808691823,11.27006118,150.14,150.08,11.27006118]
[1751808692088,11.27006118,150.11,150.04,25.18156819]
[1751808692376,11.27006118,150.11,150.04,8.52]
[1751808692585,6.66124496,150.13,150.04,15.18479746]
[1751808692797,11.27006118,150.07,150.03,6.66521654]
[1751808693000,11.946,150.11,150.03,6.66521654]
[1751808693166,7.38770549,150.1,150.03,17.93527772]
[1751808693368,18.65776667,150.1,150.04,11.27006118]
[1751808693670,11.27006118,150.1,150.04,11.27006118]
[1751808694359,11.27006118,150.1,150.05,6.66444518]
[1751808694758,6.66171229,150.12,150.05,6.66444518]
[1751808694954,14.05928225,150.13,150.05,6.66444518]
[1751808695185,11.27006118,150.11,150.05,6.66444518]
[1751808695488,6.6611798,150.13,150.05,6.66444518]
[1751808695670,11.27006118,150.08,150.0,18.64964886]
[1751808695877,6.6611798,150.13,149.99,16.66708494]
[1751808695878,11.27006118,150.06,149.99,16.66708494]
[1751808696065,11.27006118,150.06,150.0,17.93672784]
[1751808696391,11.27006118,150.06,150.0,17.99672784]
[1751808696567,11.27006118,150.06,150.0,6.72666666]
[1751808696901,11.27006118,150.03,150.0,6.72653369]
[1751808697183,11.27006118,150.04,150.0,6.72653369]
[1751808697991,11.27006118,150.02,150.0,0.06]
[1751808698184,11.27006118,150.01,150.0,0.06]
[1751808698661,18.68841124,150.01,150.0,0.06]
[1751808699774,7.41835006,150.01,150.0,0.06]
[1751808700094,11.27006118,150.01,150.0,0.06]
[1751808700261,7.41835006,150.01,150.0,0.06]
[1751808700461,11.27006118,150.01,150.0,0.06]
[1751808700662,18.68841124,150.01,150.0,0.06]
[1751808702982,25.35463349,150.01,150.0,0.06]
[1751808703761,44.00428235,150.01,150.0,0.06]
[1751808704481,7.41835006,150.01,150.0,0.06]
[1751808704683,7.41835006,150.03,150.0,0.06]
[1751808704866,14.08284442,150.05,150.0,0.06]
[1751808706203,7.41835006,150.05,150.0,0.06]
[1751808706365,6.66445511,150.05,150.0,0.06]
[1751808706878,16.91798076,150.03,150.0,0.06]
[1751808707890,16.91798076,150.02,150.0,0.06]
[1751808708969,6.66444518,150.05,150.0,0.06]
[1751808709789,14.0773928,150.05,150.0,0.06]
[1751808711172,6.66444518,150.05,150.0,0.06]
[1751808711375,6.66400261,150.06,150.0,0.06]
[1751808711570,14.07526037,150.06,150.0,0.06]
[1751808713382,6.66400261,150.06,150.0,0.06]
[1751808713578,35.61457663,150.11,150.02,16.91798076]
[1751808713784,16.91798076,150.09,150.03,16.91798076]
[1751808713987,16.91798076,150.09,150.0,0.06]
[1751808714184,16.91798076,150.08,150.02,16.91798076]
[1751808714791,16.91798076,150.07,150.03,6.66533359]
[1751808715494,16.91798076,150.06,150.0,16.97798076]
[1751808715687,16.91798076,150.07,150.01,23.58420301]
[1751808715999,16.91798076,150.06,150.01,6.66622225]
[1751808716496,16.91798076,150.09,150.03,16.91798076]
[1751808716896,16.91798076,150.07,150.03,6.66533359]
[1751808717398,16.91798076,150.08,150.03,6.66533359]
[1751808717786,6.66251909,150.1,150.03,6.66533359]
[1751808718012,16.91798076,150.07,150.03,6.66533359]
[1751808718180,6.66178136,150.11,150.03,6.66533359]
[1751808718502,16.91798076,150.06,150.03,6.66533359]
[1751808719290,16.91798076,150.06,150.02,6.66577789]
[1751808719791,16.91798076,150.07,150.02,6.66577789]
[1751808720590,16.91798076,150.05,150.02,6.66577789]
[1751808720908,16.91798076,150.1,150.04,16.91798076]
[1751808721110,16.91798076,150.1,150.02,23.33022263]
[1751808721111,0.03,150.14,150.05,2.3469]
[1751808721284,16.94798076,150.14,150.09,6.66266906]
[1751808721621,0.03,150.14,150.1,16.91798076]
[1751808721909,0.03,150.14,150.11,16.91798076]
[1751808722085,0.03,150.14,150.09,23.31934172]
[1751808722478,0.03,150.14,150.1,16.91798076]
[1751808722695,0.03,150.14,150.09,23.31934172]
[1751808722899,0.03,150.14,150.1,16.91798076]
[1751808723101,0.03,150.14,150.09,23.31934172]
[1751808723305,0.03,150.14,150.07,6.663557]
[1751808723507,0.03,150.14,150.06,16.06851068]
[1751808723712,15.42887904,150.13,150.06,16.06851068]
[1751808724078,8.06225931,150.13,150.06,16.06851068]
[1751808724308,16.94798076,150.14,150.06,32.72851334]
[1751808724501,0.03,150.14,150.06,32.72851334]
[1751808724711,0.03,150.14,150.06,16.06851068]
[1751808724914,16.91798076,150.12,150.06,16.06851068]
[1751808725210,16.91798076,150.13,150.07,16.91798076]
[1751808725411,0.03,150.14,150.06,16.06851068]
[1751808725600,0.03,150.14,150.07,16.91798076]
[1751808725911,16.91798076,150.13,150.07,16.91798076]
[1751808726097,16.91798076,150.12,150.06,32.98649144]
[1751808726712,16.91798076,150.12,150.06,16.06851068]
[1751808726918,11.19721744,150.12,150.06,27.26572812]
[1751808727120,11.19721744,150.12,150.06,16.06851068]
[1751808727422,11.19721744,150.1,150.05,9.0112826]
[1751808727713,0.03,150.14,150.05,20.20850004]
[1751808727896,0.03,150.14,150.05,9.0112826]
[1751808728317,0.03,150.14,150.05,20.20850004]
[1751808728820,0.03,150.14,150.05,9.0112826]
[1751808729020,6.69062776,150.14,150.05,9.0112826]
[1751808729333,6.69062776,150.14,150.03,6.66495373]
[1751808729334,11.19721744,150.08,150.03,6.66495373]
[1751808729523,81.2,150.11,150.03,6.66495373]
[1751808729820,11.19721744,150.09,150.03,17.86217117]
[1751808729992,7.40878891,150.08,150.03,17.86217117]
[1751808730192,7.40878891,150.07,150.03,17.86217117]
[1751808730420,7.40878891,150.08,150.03,17.86217117]
[1751808730603,7.40878891,150.07,150.03,17.86217117]
[1751808730794,7.40878891,150.08,150.03,17.86217117]
[1751808731117,7.40878891,150.07,150.03,17.86217117]
[1751808731416,90.47074446,150.11,150.03,17.86217117]
[1751808731417,11.19721744,150.09,150.03,17.86217117]
[1751808731588,7.40878891,150.08,150.03,6.66495373]
[1751808731787,7.40878891,150.07,150.03,6.66495373]
[1751808731988,11.19721744,150.09,150.03,6.66495373]
[1751808732213,7.40878891,150.1,150.03,6.66495373]
[1751808732214,18.60600635,150.08,150.03,6.66495373]
[1751808732485,7.40878891,150.07,150.03,6.66495373]
[1751808732687,7.40878891,150.06,150.02,12.86311595]
[1751808732905,18.60600635,150.06,150.02,6.1974]
[1751808733108,7.40878891,150.05,150.01,1.5711]
[1751808733317,11.19721744,150.06,150.01,1.5711]
[1751808733528,7.41948249,150.05,150.01,1.5711]
[1751808733815,7.41948249,150.04,150.02,6.66569829]
[1751808734001,7.41948249,150.05,150.02,6.66569829]
[1751808734196,97.13349437,150.09,150.02,6.66569829]
[1751808734509,7.42327316,150.08,150.03,11.19721744]
[1751808734701,7.42327316,150.07,150.03,11.19721744]
[1751808734907,7.42327316,150.06,150.02,17.86291573]
[1751808735089,7.42327316,150.05,150.02,17.86291573]
[1751808735405,7.42809833,150.04,150.02,17.86291573]
[1751808735607,11.19721744,150.07,150.02,6.66569829]
[1751808735801,7.42866795,150.06,150.02,6.66569829]
[1751808736109,7.42866795,150.05,150.02,6.66569829]
[1751808736319,7.42866795,150.04,150.02,17.86291573]
[1751808736512,11.19721744,150.07,150.02,6.66569829]
[1751808736710,7.43053464,150.06,150.02,6.66569829]
[1751808736902,11.19721744,150.07,150.02,6.66569829]
[1751808736903,7.43053464,150.05,150.02,6.66569829]
[1751808737104,7.43053464,150.04,150.02,6.66569829]
[1751808737306,20.4679619,150.07,150.02,6.66569829]
[1751808737504,7.43070984,150.06,150.02,6.66569829]
[1751808737693,7.43070984,150.05,150.02,6.66569829]
[1751808737894,7.43070984,150.04,150.02,6.66569829]
[1751808738104,20.4679619,150.07,150.02,6.66569829]
[1751808738304,7.43070984,150.06,150.02,6.66569829]
[1751808738502,7.43070984,150.05,150.02,6.66569829]
[1751808738710,7.43070984,150.04,150.02,6.66569829]
[1751808739017,20.4679619,150.07,150.02,6.66569829]
[1751808739205,7.43023249,150.06,150.01,8.23718251]
[1751808739391,7.43023249,150.05,150.01,8.23718251]
[1751808739593,7.43023249,150.04,150.01,8.23718251]
[1751808739794,9.27074446,150.07,150.01,19.43439995]
[1751808740014,7.43000866,150.06,150.01,19.43439995]
[1751808740217,7.43000866,150.05,150.01,19.43439995]
[1751808740397,7.43000866,150.04,150.01,8.23718251]
[1751808740712,11.19721744,150.07,150.01,8.23718251]
[1751808741012,7.4297772,150.06,150.01,8.23718251]
[1751808741320,7.4297772,150.05,150.01,19.43439995]
[1751808741506,7.4297772,150.04,150.01,19.43439995]
[1751808741821,11.19721744,150.07,150.01,8.23718251]
[1751808742020,7.42870986,150.06,150.01,19.43439995]
[1751808742218,7.42870986,150.05,150.01,19.43439995]
[1751808742408,7.42870986,150.04,150.01,19.43439995]
[1751808742713,11.19721744,150.07,150.01,19.43439995]
[1751808742916,7.42770748,150.06,150.01,19.43439995]
[1751808743127,7.42770748,150.05,150.01,19.43439995]
[1751808743301,7.42770748,150.04,150.01,19.43439995]
[1751808743504,15.93391439,150.08,150.01,19.43439995]
[1751808743800,7.42743543,150.07,150.01,19.43439995]
[1751808744002,7.42743543,150.06,150.02,11.19721744]
[1751808744209,7.42743543,150.05,150.02,11.19721744]
[1751808744401,7.42743543,150.04,150.02,11.19721744]
[1751808744597,11.19721744,150.07,150.02,11.19721744]
[1751808744797,7.42748104,150.06,150.01,8.23718251]
[1751808745006,18.62469848,150.05,150.01,8.23718251]
[1751808745203,9.27074446,150.07,150.0,0.06]
[1751808745204,18.62469848,150.04,150.0,0.06]
[1751808745399,7.42748104,150.03,150.0,6.72658112]
[1751808745601,7.42748104,150.02,150.0,0.06]
[1751808745812,81.2,150.04,150.0,6.72659371]
[1751808746018,7.42971809,150.03,150.0,6.72659371]
[1751808746216,7.42971809,150.02,150.0,6.72659371]
[1751808746396,81.2,150.04,150.0,6.72659371]
[1751808746602,7.43001588,150.03,150.0,0.06]
[1751808746838,7.43001588,150.02,150.0,6.72661312]
[1751808747130,7.43085444,150.01,150.0,0.06]
[1751808747511,18.62807188,150.01,150.0,0.06]
[1751808749643,25.29429413,150.01,150.0,0.06]
[1751808749938,25.29429413,150.01,149.93,8.30824724]
[1751808750133,11.19721744,149.98,149.93,8.30824724]
[1751808750439,11.19721744,149.97,149.93,8.30824724]
[1751808751224,11.19721744,149.98,149.93,8.30824724]
[1751808752934,11.19721744,149.96,149.93,8.30824724]
[1751808753341,11.19721744,149.97,149.93,8.30824724]
[1751808753521,11.19721744,149.94,149.89,1.64]
[1751808753715,11.19721744,149.93,149.89,1.64]
[1751808753916,11.19721744,149.94,149.89,8.31146458]
[1751808754435,1.5504,149.98,149.89,19.50868202]
[1751808754609,11.19721744,149.96,149.9,11.19721744]
[1751808755137,6.66765414,149.98,149.9,11.19721744]
[1751808755344,7.43263456,149.97,149.89,24.99036243]
[1751808755538,7.43263456,149.96,149.89,24.99036243]
[1751808755730,11.19721744,149.97,149.89,24.99036243]
[1751808756225,11.19721744,149.96,149.9,11.19721744]
[1751808757245,11.19721744,149.95,149.89,36.18757987]
[1751808757547,11.19721744,149.94,149.89,24.99036243]
[1751808757728,11.19721744,149.94,149.89,36.18757987]
[1751808758323,11.19721744,149.94,149.89,8.31146458]
[1751808758522,11.19721744,149.93,149.89,8.31146458]
[1751808759318,23.33488899,149.99,149.89,8.31146458]
[1751808759519,11.19721744,149.93,149.89,8.31146458]
[1751808759731,11.19721744,149.95,149.89,19.50868202]
[1751808759939,9.2907932,150.04,149.92,26.0]
[1751808760151,11.19721744,150.01,149.95,11.19721744]
[1751808760323,7.42051218,150.0,149.95,11.19721744]
[1751808760652,7.42051218,150.0,149.97,17.8652177]
[1751808760825,7.42051218,150.01,149.97,17.8652177]
[1751808761025,7.42051218,150.02,149.97,17.8652177]
[1751808761340,7.42051218,150.01,149.98,11.19721744]
[1751808761517,7.42051218,150.02,149.97,6.66800026]
[1751808761717,7.42051218,150.01,149.98,11.19721744]
[1751808761943,7.42051218,150.02,149.97,17.8652177]
[1751808762314,7.42051218,150.03,149.98,11.19721744]
[1751808762520,7.42051218,150.04,150.0,11.19721744]
[1751808762739,7.42051218,150.05,150.01,6.66622225]
[1751808762929,18.61772962,150.05,150.01,6.66622225]
[1751808763116,7.42051218,150.04,150.01,6.66622225]
[1751808763537,18.61772962,150.04,149.96,1.64]
[1751808763727,6.66400106,150.06,149.97,6.66792728]
[1751808763932,6.66400106,150.06,149.97,17.86514472]
[1751808763933,14.07365044,150.06,149.97,17.86514472]
[1751808764242,11.19721744,150.05,149.99,11.19721744]
[1751808764626,6.66360598,150.07,149.99,11.19721744]
[1751808764945,11.19721744,150.05,150.0,6.66666666]
[1751808765129,10.69721744,150.05,150.0,6.66666666]
[1751808766432,10.69721744,150.05,150.0,23.33333332]
[1751808766632,11.19721744,150.06,150.0,34.53055076]
[1751808767133,6.66280242,150.09,150.0,34.53055076]
[1751808767336,11.19721744,150.06,150.0,34.53055076]
[1751808767639,7.40632444,150.05,150.0,16.66666666]
[1751808767841,7.40632444,150.05,150.0,27.8638841]
[1751808768046,15.95359562,150.09,150.0,27.8638841]
[1751808768047,11.19721744,150.06,150.0,27.8638841]
[1751808768219,7.40650448,150.05,150.0,27.8638841]
[1751808768622,6.90650448,150.05,150.0,27.8638841]
[1751808769041,6.90650448,150.05,150.0,16.66666666]
[1751808769344,11.19721744,150.05,150.0,16.66666666]
[1751808769936,11.19721744,150.05,150.0,23.33333332]
[1751808770751,11.19721744,150.1,150.04,11.19721744]
[1751808771156,11.19721744,150.09,150.03,1.6596]
[1751808771338,15.95168709,150.13,150.03,1.6596]
[1751808771524,11.19721744,150.09,150.03,1.6596]
[1751808771721,11.19721744,150.08,150.03,1.6596]
[1751808771924,10.69721744,150.08,150.04,6.66488936]
[1751808773324,11.19721744,150.09,150.04,6.66488936]
[1751808775353,10.69721744,150.09,150.04,6.66488936]
[1751808775532,9.2907932,150.11,150.04,6.66488936]
[1751808775732,11.19721744,150.09,150.04,6.66488936]
[1751808776434,9.2907932,150.08,150.04,6.66488936]
[1751808776826,9.2907932,150.08,150.05,18.64964886]
[1751808777039,18.54148893,150.13,150.05,29.8468663]
[1751808777040,9.2907932,150.09,150.05,29.8468663]
[1751808778354,9.2907932,150.09,150.04,60.5243302]
[1751808778557,9.2907932,150.08,150.04,49.32711276]
[1751808778851,9.2907932,150.07,150.04,32.66488936]
[1751808779158,20.48801064,150.07,150.04,32.66488936]
[1751808779364,20.48801064,150.06,150.04,32.66488936]
[1751808779532,11.19721744,150.05,150.03,6.6652714]
[1751808779851,11.19721744,150.04,150.03,6.6652714]
[1751808780149,20.48801064,150.04,150.03,6.6652714]
[1751808780337,9.34765452,150.06,150.03,17.86248884]
[1751808780537,11.19721744,150.1,150.06,6.66400106]
[1751808780753,7.47644546,150.09,150.06,6.66400106]
[1751808780934,7.47644546,150.08,150.06,6.66400106]
[1751808781131,7.47644546,150.07,150.06,6.66400106]
[1751808783360,7.47644546,150.07,149.99,57.44734886]
[1751808783361,18.6736629,150.07,150.0,29.75864768]
[1751808783657,11.19721744,150.03,150.0,55.75864768]
[1751808783973,6.97644546,150.02,150.0,55.75864768]
[1751808784171,11.19721744,150.03,150.0,29.75864768]
[1751808784340,11.19721744,150.07,150.02,26.0]
[1751808784856,7.00261118,150.07,150.03,6.66533359]
[1751808785470,7.00261118,150.09,150.03,30.33127876]
[1751808785670,19.02236459,150.12,150.03,30.33127876]
[1751808785868,7.00261118,150.09,150.03,30.33127876]
[1751808786260,7.00261118,150.07,150.03,23.32866758]
[1751808786456,6.66137245,150.12,150.03,23.32866758]
[1751808786646,7.00261118,150.07,150.03,23.32866758]
[1751808786843,11.20322332,150.06,150.03,6.66533359]
[1751808787144,11.20322332,150.05,150.03,6.66533359]
[1751808787754,11.20322332,150.04,149.99,1.6177]
[1751808787959,11.20322332,150.03,149.99,1.6177]
[1751808788171,11.20322332,150.03,150.0,26.0]
[1751808788357,7.6181,150.11,150.0,26.0]
[1751808788668,7.6181,150.11,150.01,26.0]
[1751808788866,6.66222518,150.1,150.01,32.66590884]
[1751808789066,11.20322332,150.04,150.01,32.66590884]
[1751808789363,11.20322332,150.03,150.01,32.66590884]
[1751808789542,11.20322332,150.04,150.01,32.66590884]
[1751808789748,23.31778813,150.1,150.01,32.66590884]
[1751808789944,11.20322332,150.04,150.01,32.66590884]
[1751808790756,11.20322332,150.05,150.01,32.66590884]
[1751808791172,11.20322332,150.06,150.01,49.33146446]
[1751808791369,6.66222518,150.1,150.01,49.33146446]
[1751808791570,11.20322332,150.06,150.01,49.33146446]
[1751808791782,11.20322332,150.07,150.01,49.33146446]
[1751808791961,11.20322332,150.07,150.01,60.53468778]
[1751808792283,11.20322332,150.05,150.01,32.66590884]
[1751808792976,11.20322332,150.06,150.01,32.66590884]
[1751808793568,11.20322332,150.07,150.01,43.86913216]
[1751808793764,11.20322332,150.08,150.02,11.20322332]
[1751808793994,11.20322332,150.09,150.03,11.20322332]
[1751808794201,1.5143,150.11,150.04,17.86811268]
[1751808794507,11.20322332,150.09,150.04,6.66488936]
[1751808795073,11.20322332,150.09,150.04,23.32711276]
[1751808795387,11.20322332,150.08,150.04,23.32711276]
[1751808796376,11.20322332,150.11,150.05,11.20322332]
[1751808797180,11.20322332,150.11,150.06,6.66400106]
[1751808797382,11.20322332,150.11,150.06,23.32400372]
[1751808799397,0.03,150.14,150.06,16.66000266]
[1751808799605,0.03,150.14,150.08,37.20322332]
[1751808799767,0.03,150.14,150.1,11.20322332]
[1751808800189,0.03,150.14,150.11,26.0]
[1751808800866,0.03,150.14,150.11,37.20322332]
[1751808801279,0.03,150.14,150.12,6.66133759]
[1751808807896,7.02416686,150.14,150.12,6.66133759]
[1751808808088,1e-08,150.14,150.13,18.64964886]
[1751808808289,1e-08,150.14,150.12,6.66133759]
[1751808809112,6.99416686,150.13,150.12,6.66133759]
[1751808809478,6.99416686,150.13,150.1,6.66222518]
[1751808809684,6.99416686,150.12,150.1,6.66222518]